fUSD/lending_fUSD_20251027
["ID","MTS","AMOUNT","RATE_DAILY","PERIOD"]
[392468343,1761523245215,195.91200405,0.00038865,50]
[392468348,1761523439876,1073.20680127,0.00031506,120]
[392468349,1761523459729,800.0,0.00031506,120]
[392468351,1761523557128,-500.0,0.00031996,7]
[392468352,1761523557150,-500.0,0.00032162,7]
[392468353,1761523557171,-500.0,0.00033389,7]
[392468354,1761523557191,-500.0,0.00033916,7]
[392468355,1761523557212,-106.83847559,0.00034152,7]
[392468366,1761523831549,-500.0,0.0003207,7]
[392468367,1761523831558,-500.0,0.00032876,7]
[392468368,1761523831568,-86.45272652,0.00033179,7]
[392468369,1761523831581,-416.43859622,0.00033179,7]
[392468370,1761523831590,-41.75273223,0.00033606,7]
[392468371,1761523831632,-458.24726777,0.00033606,7]
[392468372,1761523831641,-220.0,0.00033981,2]
[392468373,1761523831651,-500.0,0.00034164,7]
[392468374,1761523831660,-500.0,0.0003425,7]
[392468375,1761523831670,-500.0,0.00034265,7]
[392468376,1761523831679,-500.0,0.0003462,7]
[392468377,1761523831688,-500.0,0.00034663,7]
[392468378,1761523831698,-321.75275223,0.00034673,7]
[392468379,1761523831709,-178.24724777,0.00034673,7]
[392468380,1761523831719,-237.0,0.00035108,2]
[392468381,1761523831728,-328.0,0.00035178,2]
[392468382,1761523831738,-217.0,0.00035342,2]
[392468383,1761523831748,-289.0,0.00035412,2]
[392468384,1761523831758,-654.89823367,0.00035423,2]
[392468385,1761523831768,-1095.0,0.00035439,3]
[392468386,1761523831778,-1876.49934274,0.0003544,2]
[392468387,1761523831789,-231.0,0.00035483,2]
[392468388,1761523831798,-393.35517582,0.00035625,30]
[392468389,1761523831810,-499.80634859,0.00035625,30]
[392468390,1761523831820,-231.0,0.00035742,2]
[392468391,1761523831829,-241.0,0.00035814,2]
[392468392,1761523831840,-159.0,0.00035885,2]
[392468393,1761523831849,-1383.0,0.0003615,2]
[392468394,1761523831859,-864.0,0.00036222,2]
[392468395,1761523831868,-1449.0,0.00036294,2]
[392468396,1761523831878,-557.0,0.00036367,2]
[392468397,1761523831887,-500.0,0.00036842,30]
[392468398,1761523831898,-500.0,0.00036951,30]
[392468400,1761523831907,-500.0,0.00037521,30]
[392468402,1761523831917,-500.0,0.0003782,30]
[392468404,1761523831927,-1320.0,0.00037889,3]
[392468406,1761523831937,-500.0,0.00038106,30]
[392468408,1761523831946,-500.0,0.00038212,30]
[392468410,1761523831956,-500.0,0.00038675,30]
[392468412,1761523831966,-161.36175,0.00038815,2]
[392468414,1761523831975,-200.0,0.00038867,30]
[392468416,1761523831984,-300.0,0.00038867,30]
[392468418,1761523831994,-280.979,0.00038867,2]
[392468420,1761523832003,-150.0,0.00038867,2]
[392468421,1761523832012,-500.0,0.0003901,30]
[392468423,1761523832022,-151.0,0.00039304,2]
[392468426,1761523832032,-264.4478428,0.00039304,2]
[392468427,1761523832042,-151.0,0.00039304,2]
[392468430,1761523832051,-151.0,0.00039304,2]
[392468431,1761523832060,-151.0,0.00039304,2]
[392468433,1761523832069,-151.0,0.00039304,2]
[392468453,1761523832243,-151.0,0.00039304,2]
[392468455,1761523832255,-151.0,0.00039304,2]
[392468457,1761523832265,-151.0,0.00039304,2]
[392468459,1761523832275,-151.0,0.00039304,2]
[392468462,1761523832285,-151.0,0.00039304,2]
[392468464,1761523832295,-151.0,0.00039304,2]
[392468465,1761523832304,-151.0,0.00039304,2]
[392468467,1761523832313,-151.0,0.00039304,2]
[392468469,1761523832323,-151.0,0.00039304,2]
[392468471,1761523832332,-151.0,0.00039304,2]
[392468473,1761523832342,-208.0,0.00039327,2]
[392468475,1761523832352,-200.0,0.00039327,2]
[392468478,1761523832362,-204.497,0.00039327,2]
[392468480,1761523832372,-250.0,0.00039327,2]
[392468482,1761523832381,-213.782,0.00039327,2]
[392468484,1761523832390,-170.28,0.00039327,2]
[392468485,1761523832399,-151.371,0.00039327,2]
[392468488,1761523832410,-250.0,0.00039327,2]
[392468489,1761523832420,-254.506,0.00039327,2]
[392468492,1761523832430,-188.466,0.00039327,2]
[392468494,1761523832440,-150.0,0.00039327,2]
[392468496,1761523832450,-150.899,0.00039327,2]
[392468498,1761523832460,-571.0,0.00039327,2]
[392468499,1761523832469,-252.665,0.00039327,2]
[392468500,1761523832478,-2054.0,0.00039327,2]
[392468501,1761523832488,-3489.0,0.00039327,2]
[392468502,1761523832501,-1592.51873882,0.00039327,2]
[392468503,1761523832512,-483.67048522,0.00039327,2]
[392468504,1761523832523,-586.00786397,0.00039327,2]
[392468505,1761523832535,-3796.80291199,0.00039327,2]
[392468506,1761523832544,-6585.0,0.00039327,2]
[392468507,1761523832553,-225.73,0.00039558,55]
[392468508,1761523832562,-473.72632135,0.00039572,2]
[392468509,1761523832574,-166.11,0.00039729,2]
[392468510,1761523832582,-39.13616502,0.0004029,2]
[392468511,1761523832593,-1517.19383498,0.0004029,2]
[392468512,1761523832602,-150.99,0.0004029,2]
[392468513,1761523832612,-999.99,0.0004029,2]
[392468515,1761523832621,-993.21,0.0004029,2]
[392468517,1761523832630,-600.0,0.00040383,30]
[392468519,1761523832639,-900.0,0.00040458,30]
[392468520,1761523832648,-168.0,0.00041,90]
[392468523,1761523832658,-1000.0,0.00041032,2]
[392468524,1761523832667,-699.03,0.000413,7]
[392468526,1761523832676,-1585.31,0.00041358,120]
[392468528,1761523832686,-200.0,0.0004136,2]
[392468530,1761523832695,-200.0,0.00041378,2]
[392468532,1761523832705,-220.0,0.00041743,2]
[392468534,1761523832714,-220.0,0.00041948,2]
[392468536,1761523832723,-221.36,0.00042,30]
[392468538,1761523832733,-220.0,0.0004212,120]
[392468540,1761523832742,-708.8273432,0.00042121,2]
[392468542,1761523832751,-220.0,0.00042314,7]
[392468544,1761523832761,-220.0,0.00042324,2]
[392468546,1761523832771,-150.0,0.00042327,2]
[392468548,1761523832782,-150.0,0.00042327,2]
[392468550,1761523832792,-150.0,0.00042327,2]
[392468553,1761523832802,-150.0,0.00042327,2]
[392468554,1761523832811,-150.0,0.00042327,2]
[392468556,1761523832821,-150.0,0.00042327,2]
[392468558,1761523832831,-150.0,0.00042327,2]
[392468560,1761523832840,-2050.0,0.00042327,2]
[392468562,1761523832851,-3489.0,0.00042327,2]
[392468564,1761523832860,-6459.0,0.00042327,2]
[392468566,1761523832870,-6214.375,0.00042327,2]
[392468568,1761523832884,-166.11,0.00042371,2]
[392468570,1761523832895,-294.0,0.00042384,2]
[392468572,1761523832905,-220.0,0.00042616,2]
[392468574,1761523832915,-500.0,0.00042904,2]
[392468576,1761523832925,-500.0,0.00042904,7]
[392468578,1761523832935,-150.0,0.00042904,7]
[392468580,1761523832944,-500.0,0.00042904,7]
[392468582,1761523832954,-500.0,0.00042904,7]
[392468584,1761523832963,-207.27140812,0.00042904,7]
[392468586,1761523832973,-150.0,0.00042904,7]
[392468588,1761523832982,-500.0,0.00042904,7]
[392468590,1761523832991,-150.0,0.00042904,2]
[392468592,1761523833000,-150.0,0.00042904,7]
[392468594,1761523833009,-150.0,0.00042904,7]
[392468596,1761523833018,-150.0,0.00042904,2]
[392468598,1761523833028,-500.0,0.00042904,7]
[392468600,1761523833038,-150.0,0.00042904,2]
[392468602,1761523833047,-500.0,0.00042904,7]
[392468604,1761523833056,-500.0,0.00042904,7]
[392468606,1761523833066,-200.0,0.0004292,2]
[392468608,1761523833076,-500.0,0.0004292,2]
[392468609,1761523833086,-150.0,0.0004292,2]
[392468611,1761523833096,-220.0,0.0004292,2]
[392468613,1761523833105,-500.0,0.00042931,2]
[392468615,1761523833115,-500.0,0.00042931,7]
[392468618,1761523833125,-150.0,0.00042931,7]
[392468620,1761523833135,-500.0,0.00042931,7]
[392468621,1761523833144,-500.0,0.00042931,7]
[392468623,1761523833153,-150.0,0.00042931,7]
[392468625,1761523833163,-400.0,0.00042931,7]
[392468627,1761523833172,-150.0,0.00042931,7]
[392468629,1761523833181,-150.0,0.00042931,7]
[392468631,1761523833191,-400.0,0.00042931,7]
[392468633,1761523833200,-500.0,0.00042931,7]
[392468635,1761523833209,-500.0,0.00042931,7]
[392468637,1761523833219,-247.43583498,0.00042947,2]
[392468639,1761523833231,-252.56416502,0.00042947,2]
[392468641,1761523833242,-500.0,0.00042959,2]
[392468643,1761523833253,-500.0,0.00042959,7]
[392468645,1761523833267,-150.0,0.00042959,7]
[392468648,1761523833280,-500.0,0.00042959,7]
[392468649,1761523833292,-500.0,0.00042959,7]
[392468651,1761523833302,-150.0,0.00042959,7]
[392468653,1761523833312,-258.28035432,0.00042959,7]
[392468655,1761523833321,-98.97153148,0.00042959,7]
[392468658,1761523833334,-51.02846852,0.00042959,7]
[392468660,1761523833343,-382.29488821,0.00042959,7]
[392468662,1761523833355,-117.70511179,0.00042959,7]
[392468664,1761523833367,-163.53038811,0.00042959,7]
[392468666,1761523833378,-9.0133209,0.00042959,7]
[392468668,1761523833388,-500.0,0.00042975,2]
[392468671,1761523833398,-560.57603231,0.00042986,2]
[392468672,1761523833407,-125.7322976,0.00042986,7]
[392468675,1761523833419,-374.2677024,0.00042986,7]
[392468677,1761523833428,-150.0,0.00042986,7]
[392468679,1761523833438,-500.0,0.00042986,7]
[392468681,1761523833447,-500.0,0.00042986,7]
[392468683,1761523833457,-150.0,0.00042986,7]
[392468685,1761523833466,-150.0,0.00042986,7]
[392468687,1761523833475,-500.0,0.00042986,7]
[392468689,1761523833486,-516.8255896,0.00043002,2]
[392468691,1761523833499,-500.0,0.00043014,7]
[392468693,1761523833509,-150.0,0.00043014,7]
[392468695,1761523833518,-500.0,0.00043014,7]
[392468697,1761523833528,-500.0,0.00043014,7]
[392468698,1761523833538,-200.0,0.00043014,7]
[392468700,1761523833548,-165.94026784,0.00043014,7]
[392468702,1761523833557,-500.0,0.00043014,7]
[392468704,1761523833567,-500.0,0.00043041,7]
[392468706,1761523833578,-150.0,0.00043041,7]
[392468708,1761523833587,-500.0,0.00043041,7]
[392468710,1761523833596,-500.0,0.00043041,7]
[392468712,1761523833605,-500.0,0.00043041,7]
[392468714,1761523833614,-500.0,0.00043068,7]
[392468716,1761523833623,-500.0,0.00043096,7]
[392468718,1761523833632,-220.0,0.00043116,120]
[392468720,1761523833641,-313.21161893,0.00043123,7]
[392468723,1761523833652,-186.78838107,0.00043123,7]
[392468725,1761523833661,-300.45329893,0.00043151,7]
[392468727,1761523833671,-199.54670107,0.00043151,7]
[392468729,1761523833680,-500.0,0.00043178,7]
[392468731,1761523833689,-466.45329893,0.00043205,7]
[392468733,1761523833700,-33.54670107,0.00043205,7]
[392468735,1761523833708,-500.0,0.00043233,7]
[392468737,1761523833718,-250.0,0.0004326,7]
[392468739,1761523833727,-1600.0,0.00043685,120]
[392468741,1761523833738,-220.0,0.0004379,2]
[392468743,1761523833746,-220.0,0.00043802,120]
[392468744,1761523833755,-500.0,0.00043834,9]
[392468746,1761523833764,-600.0,0.00043835,120]
[392468749,1761523833775,-500.0,0.00043835,120]
[392468751,1761523833784,-220.0,0.00043854,7]
[392468752,1761523833793,-193.22444097,0.00044007,7]
[392468799,1761523837455,-26.77555903,0.00044007,7]
[392468800,1761523837464,-220.0,0.00044078,7]
[392468801,1761523837473,-155.99051836,0.00044109,120]
[392468802,1761523837485,-461.64975658,0.00044109,120]
[392468803,1761523837499,-500.0,0.00044109,120]
[392468804,1761523837508,-176.46,0.00044192,30]
[392468805,1761523837517,-1095.2,0.00044192,30]
[392468806,1761523837527,-1211.86,0.00044192,30]
[392468807,1761523837538,-300.0,0.00044192,30]
[392468808,1761523837547,-68.51477147,0.00044192,30]
[392468809,1761523837561,-558.0,0.00039327,2]
[392468810,1761523837570,-100.09522853,0.00044192,30]
[392468811,1761523837581,-428.35,0.00044192,30]
[392468812,1761523837590,-300.0,0.00044192,30]
[392468813,1761523837603,-176.46,0.00044192,30]
[392468814,1761523837612,-168.61,0.00044192,30]
[392468815,1761523837621,-414.6,0.00044192,30]
[392468816,1761523837630,-176.46,0.00044192,30]
[392468817,1761523837640,-168.61,0.00044192,30]
[392468818,1761523837650,-414.6,0.00044192,30]
[392468819,1761523837658,-176.02,0.00044192,30]
[392468820,1761523837667,-168.61,0.00044192,30]
[392468821,1761523837676,-414.6,0.00044192,30]
[392468822,1761523837685,-168.61,0.00044192,30]
[392468823,1761523837694,-168.61,0.00044192,30]
[392468824,1761523837703,-168.61,0.00044192,30]
[392468825,1761523837713,-79.30870145,0.00044193,2]
[392468826,1761523837724,-140.69129855,0.00044193,2]
[392468827,1761523837733,-220.0,0.00044316,120]
[392468828,1761523837743,-500.0,0.00044383,120]
[392468829,1761523837752,-285.75654216,0.00044447,2]
[392468830,1761523837768,-743.88763344,0.00044447,2]
[392468831,1761523837779,-220.0,0.00044472,2]
[392468832,1761523837788,-213.45,0.00044481,14]
[392468833,1761523837797,-1862.98333974,0.00044482,15]
[392468834,1761523837806,-1862.98333967,0.00044528,15]
[392468835,1761523837816,-822.69568715,0.00044575,15]
[392468845,1761523839702,-558.0,0.00042327,2]
[392468846,1761523839712,-1040.28765252,0.00044575,15]
[392468847,1761523839722,-151.0,0.00044579,120]
[392468848,1761523839732,-1439.93876384,0.00044581,2]
[392468849,1761523841422,194.12,0.00013699,2]
[392468875,1761523845657,-194.12,0.00020187,2]
[392468876,1761523845667,-194.12,0.00026676,2]
[392468878,1761523845676,-194.12,0.00033165,2]
[392468880,1761523845686,-194.12,0.00039654,2]
[392468882,1761523845696,-2.67328,0.00041171,120]
[392468884,1761523845707,-172.27672,0.00041171,120]
[392468886,1761523845717,-168.61,0.00044192,30]
[392468887,1761523845726,-1676.43858,0.00044581,2]
[392468888,1761523845738,-329.8124977,0.00044581,2]
[392468889,1761523845871,-1931.93830246,0.00044581,2]
[392468916,1761524708056,2714677.22281033,0.00015,2]
[392468921,1761524741130,-210.68384756,0.00028,2]
[392468931,1761524873862,82208.92395194,0.00015,2]
[392468938,1761524945114,-1195.91165371,0.0002,2]
[392468939,1761525009089,623.44207096,0.00022,120]
[392468952,1761525031634,-76.59930481,0.0002,2]
[392468953,1761525031644,-215.42859197,0.00028,2]
[392468954,1761525031654,-1002.62439007,0.0003013,5]
[392468955,1761525031670,-500.0,0.00032044,7]
[392468956,1761525031683,-500.0,0.00032182,7]
[392468957,1761525031693,-500.0,0.00033878,7]
[392468958,1761525031703,-500.0,0.00033936,7]
[392468959,1761525031712,-500.0,0.00035133,30]
[392468960,1761525031724,-500.0,0.00035405,30]
[392468961,1761525031734,-500.0,0.0003586,30]
[392468962,1761525031746,-500.0,0.0003657,30]
[392468963,1761525031755,-500.0,0.00037107,30]
[392468964,1761525031765,-153.0,0.00037581,90]
[392468965,1761525031774,-913.0,0.00037583,3]
[392468966,1761525031783,-153.0,0.00037584,90]
[392468967,1761525031793,-153.0,0.00037584,90]
[392468968,1761525031802,-153.0,0.00037584,90]
[392468969,1761525031812,-153.0,0.00037584,90]
[392468970,1761525031821,-153.0,0.00037601,90]
[392468971,1761525031831,-153.0,0.00037604,90]
[392468972,1761525031841,-153.0,0.00037604,90]
[392468973,1761525031853,-153.0,0.00037604,90]
[392468974,1761525031863,-400.0,0.00037619,2]
[392468975,1761525031873,-153.0,0.00037621,90]
[392468976,1761525031883,-153.0,0.00037621,90]
[392468977,1761525031892,-153.0,0.00037621,90]
[392468978,1761525031902,-153.0,0.00037623,90]
[392468979,1761525031912,-153.0,0.00037623,90]
[392468980,1761525031923,-153.0,0.00037642,90]
[392468981,1761525031932,-153.0,0.00037644,90]
[392468982,1761525031942,-153.0,0.00037644,90]
[392468983,1761525031951,-500.0,0.00037949,30]
[392468984,1761525031962,-163.0,0.00038,4]
[392468985,1761525031971,-500.0,0.00038529,30]
[392468987,1761525031981,-500.0,0.00038679,30]
[392468989,1761525031993,-1174.0,0.00038866,50]
[392468991,1761525032003,-200.0,0.00038866,30]
[392468993,1761525032012,-300.0,0.00038866,30]
[392468995,1761525032021,-397.17478723,0.00038866,2]
[392468997,1761525032031,-3266.59292592,0.00038866,2]
[392469000,1761525032048,-368.47303057,0.00038866,2]
[392469044,1761525037707,-1541.22003675,0.00038866,2]
[392469045,1761525037719,-838.64874452,0.00038866,2]
[392469046,1761525037728,-323.87286133,0.00038866,2]
[392469058,1761525039892,-70043.95707257,0.00038866,2]
[392469059,1761525039901,-500.0,0.00039145,30]
[392469060,1761525039911,-500.0,0.00039427,30]
[392469061,1761525039923,-600.0,0.00039555,30]
[392469062,1761525039932,-500.0,0.00039649,30]
[392469063,1761525039941,-500.0,0.00039741,120]
[392469064,1761525039950,-500.0,0.00039979,120]
[392469065,1761525039960,-500.0,0.00039979,120]
[392469066,1761525039971,-221.36,0.0004,30]
[392469067,1761525039980,-29093.65584048,0.0004,2]
[392469068,1761525039990,-500.0,0.00040076,30]
[392469069,1761525040000,-3487.0,0.00040186,2]
[392469070,1761525040012,-6539.0,0.00040186,2]
[392469071,1761525040025,-302.273,0.00040186,57]
[392469072,1761525040041,-560.0,0.00040226,5]
[392469073,1761525040052,-531.17503574,0.00040245,30]
[392469074,1761525040061,-248.75,0.0004029,2]
[392469075,1761525040073,-700.0,0.00040323,30]
[392469076,1761525040082,-2000.0,0.00040471,120]
[392469077,1761525040091,-220.51270577,0.00040622,30]
[392469078,1761525040101,-150.0,0.00040651,2]
[392469079,1761525040110,-150.0,0.00040651,120]
[392469080,1761525040120,-166.66,0.00040871,30]
[392469081,1761525040129,-193.14,0.00041211,2]
[392469082,1761525040138,-932.26424,0.0004123,5]
[392469083,1761525040148,-150.0,0.00041831,2]
[392469084,1761525040157,-393.09,0.00041854,2]
[392469086,1761525040167,-448.0,0.000419,2]
[392469088,1761525040176,-159.25,0.00042232,2]
[392469090,1761525040186,-500.0,0.00042729,2]
[392469092,1761525040195,-500.0,0.0004284,120]
[392469094,1761525040205,-2000.0,0.0004284,120]
[392469096,1761525040214,-500.0,0.0004284,120]
[392469098,1761525040223,-500.0,0.0004284,120]
[392469100,1761525040233,-200.0,0.0004284,120]
[392469102,1761525040243,-173.65,0.00042904,30]
[392469104,1761525040252,-173.65,0.00043178,30]
[392469106,1761525040261,-2671.05,0.00043205,2]
[392469108,1761525040270,-150.0,0.0004326,7]
[392469110,1761525040280,-150.0,0.0004326,7]
[392469112,1761525040289,-150.0,0.0004326,7]
[392469114,1761525040299,-150.0,0.0004326,7]
[392469117,1761525040308,-150.0,0.0004326,7]
[392469118,1761525040317,-150.77597293,0.0004326,7]
[392469120,1761525040326,-202.01765236,0.0004326,7]
[392469123,1761525040337,-150.0,0.0004326,7]
[392469125,1761525040346,-500.0,0.0004326,7]
[392469126,1761525040357,-150.0,0.0004326,7]
[392469129,1761525040367,-150.0,0.00043287,7]
[392469130,1761525040378,-268.24179502,0.00043287,7]
[392469132,1761525040387,-205.29554291,0.00043287,7]
[392469134,1761525040397,-500.0,0.00043287,7]
[392469136,1761525040407,-150.0,0.00043287,7]
[392469138,1761525040416,-250.0,0.00043315,7]
[392469140,1761525040426,-500.0,0.00043315,7]
[392469142,1761525040435,-150.0,0.00043315,7]
[392469144,1761525040444,-500.0,0.00043342,7]
[392469146,1761525040453,-213.5792014,0.00043342,7]
[392469148,1761525040462,-500.0,0.0004337,7]
[392469150,1761525040471,-500.0,0.00043397,7]
[392469152,1761525040480,-393.09,0.00043423,2]
[392469154,1761525040489,-500.0,0.00043424,7]
[392469156,1761525040500,-500.0,0.00043452,7]
[392469158,1761525040509,-173.66,0.00043452,30]
[392469160,1761525040519,-509.6001005,0.00043479,7]
[392469162,1761525040528,-1500.0,0.00043484,120]
[392469164,1761525040537,-1000.0,0.000435,7]
[392469166,1761525040547,-1000.0,0.000435,7]
[392469168,1761525040556,-1012.0,0.000435,7]
[392469170,1761525040565,-1000.0,0.000435,7]
[392469172,1761525040575,-1304.08833785,0.00043653,15]
[392469174,1761525040584,-167.8,0.00043678,30]
[392469176,1761525040593,-151.0,0.00043701,2]
[392469178,1761525040603,-3692.5756193,0.00043727,2]
[392469180,1761525040611,-12275.73179615,0.00043727,2]
[392469183,1761525040624,-1484.9199996,0.00043727,2]
[392469185,1761525040635,-4318.81114374,0.00043727,2]
[392469257,1761525042716,-11025.39882011,0.00043727,2]
[392469258,1761525042729,-1304.08833776,0.00043792,15]
[392469259,1761525042738,-1304.08833776,0.0004393,15]
[392469260,1761525042749,-221.36,0.00044,30]
[392469261,1761525042758,-1304.08833776,0.00044069,15]
[392469262,1761525042767,-18.98001472,0.0004414,22]
[392469263,1761525042808,-157.72460528,0.0004414,22]
[392469264,1761525042817,-2000.0,0.00044165,120]
[392469265,1761525042826,-1304.08833776,0.00044207,15]
[392469266,1761525042837,-1304.08833776,0.00044346,15]
[392469267,1761525042850,-998.15733735,0.00044351,120]
[392469268,1761525042859,-500.0,0.0004444,120]
[392469269,1761525042868,-500.0,0.0004444,120]
[392469270,1761525042879,-1304.08833776,0.00044484,15]
[392469271,1761525042889,-168.0,0.00044532,2]
[392469272,1761525042898,-500.0,0.00044573,120]
[392469273,1761525042907,-159.25,0.00044578,2]
[392469274,1761525042918,-620.0,0.00044578,120]
[392469275,1761525042927,-642.94,0.00044578,120]
[392469276,1761525042937,-666.72878,0.00044578,120]
[392469277,1761525042946,-691.39774486,0.00044578,120]
[392469278,1761525042955,-378.93347514,0.00044578,120]
[392469279,1761525042964,-249.75524932,0.0004458,120]
[392469280,1761525042974,-151.0,0.00044581,2]
[392469281,1761525042985,-6484.1044397,0.00044582,2]
[392469282,1761525042996,-220.0,0.00044593,7]
[392469283,1761525043005,-1304.08833776,0.00044623,15]
[392469284,1761525043015,-220.0,0.0004467,2]
[392469285,1761525043024,-1000.0,0.00044754,2]
[392469286,1761525043033,-1304.08833776,0.00044761,15]
[392469287,1761525043043,-220.0,0.00044882,120]
[392469288,1761525043051,-5000.0,0.0004489,120]
[392469289,1761525043061,-1034.55659244,0.00044893,17]
[392469290,1761525043071,-170.89185225,0.00044893,15]
[392469291,1761525043080,-451.60728439,0.00044893,15]
[392469292,1761525043090,-451.60728433,0.00044894,15]
[392469293,1761525043099,-451.60728433,0.00044895,15]
[392469295,1761525043109,-451.60728433,0.00044895,15]
[392469297,1761525043118,-451.60728433,0.00044896,15]
[392469298,1761525043127,-451.60728433,0.00044897,15]
[392469299,1761525043137,-451.60728433,0.00044898,15]
[392469300,1761525043146,-451.60728433,0.00044898,15]
[392469301,1761525043156,-500.0,0.00044899,120]
[392469302,1761525043166,-500.0,0.00044899,120]
[392469303,1761525043175,-500.0,0.00044899,120]
[392469304,1761525043184,-500.0,0.00044899,2]
[392469305,1761525043193,-305.31363308,0.00044899,2]
[392469306,1761525043203,-300.0,0.00044899,2]
[392469307,1761525043212,-500.0,0.00044899,2]
[392469308,1761525043222,-500.0,0.00044899,120]
[392469309,1761525043231,-500.0,0.00044899,120]
[392469310,1761525043240,-500.0,0.00044899,120]
[392469311,1761525043250,-500.0,0.00044899,2]
[392469312,1761525043259,-2103.0,0.00044899,14]
[392469313,1761525043268,-1951.56,0.00044899,120]
[392469314,1761525043278,-2006.4,0.00044899,2]
[392469315,1761525043286,-500.0,0.00044899,120]
[392469316,1761525043295,-222.92812529,0.00044899,120]
[392469317,1761525043304,-500.0,0.00044899,120]
[392469318,1761525043313,-3957.9557,0.000449,120]
[392469319,1761525043323,-171.6001596,0.000449,17]
[392469320,1761525043332,-1304.08833776,0.000449,15]
[392469321,1761525043342,-169.11988859,0.000449,2]
[392469322,1761525043351,-171.60015957,0.00044934,17]
[392469323,1761525043360,-1425.0,0.00044956,2]
[392469324,1761525043369,-171.60015957,0.00044968,18]
[392469325,1761525043379,-450.0,0.0004497,3]
[392469326,1761525043389,-220.0,0.00044971,7]
[392469327,1761525043398,-459.88964749,0.00044973,10]
[392469328,1761525043409,-390.5,0.00044978,7]
[392469329,1761525043418,-500.0,0.00044978,2]
[392469330,1761525043428,-500.0,0.00044978,120]
[392469331,1761525043437,-500.0,0.00044978,2]
[392469332,1761525043447,-300.0,0.00044978,120]
[392469333,1761525043456,-500.0,0.00044978,2]
[392469334,1761525043465,-500.0,0.00044978,30]
[392469335,1761525043474,-331.2737241,0.00044978,120]
[392469336,1761525043485,-500.0,0.00044978,120]
[392469337,1761525043496,-500.0,0.00044978,120]
[392469338,1761525043510,-500.0,0.00044978,120]
[392469339,1761525043519,-500.0,0.00044978,120]
[392469340,1761525043530,-300.0,0.00044979,2]
[392469341,1761525043539,-405.30897142,0.0004498,120]
[392469342,1761525043549,-48391.4898398,0.0004498,3]
[392469343,1761525043558,-500.0,0.00044989,120]
[392469344,1761525043568,-500.0,0.00044989,120]
[392469345,1761525043578,-500.0,0.00044989,2]
[392469346,1761525043587,-500.0,0.00044989,2]
[392469347,1761525043740,-24700.3560237,0.0004499,3]
[392469348,1761525043751,-151.0,0.0004499,120]
[392469349,1761525043760,-212423.061803,0.0004499,3]
[392469350,1761525043769,-150.41,0.0004499,2]
[392469351,1761525043778,-221.15785216,0.0004499,7]
[392469352,1761525043789,-221.15785216,0.0004499,7]
[392469353,1761525043798,-221.15785216,0.0004499,7]
[392469354,1761525043808,-393.09,0.00044993,2]
[392469355,1761525043817,-150.0,0.00044998,2]
[392469356,1761525043827,-575.6622708,0.00044998,2]
[392469357,1761525043836,-677.43752035,0.00044999,30]
[392469358,1761525043850,-485.12243254,0.00044999,2]
[392469359,1761525043859,-500.0,0.00044999,2]
[392469360,1761525043868,-500.0,0.00044999,2]
[392469361,1761525043877,-500.0,0.00044999,2]
[392469362,1761525043887,-214.65159289,0.00044999,2]
[392469363,1761525043896,-86235.13511137,0.00045,44]